fUST/lending_fUST_20251201
["ID","MTS","AMOUNT","RATE_DAILY","PERIOD"]
[395213231,1764547842372,-500.0,0.00013698,2]
[395213233,1764547842382,-500.0,0.00013698,2]
[395213234,1764547842392,-2289.13,0.00013698,2]
[395213236,1764547842402,-500.0,0.00013698,2]
[395213239,1764547842412,-690.1,0.00013698,2]
[395213241,1764547842421,-500.0,0.00013698,2]
[395213243,1764547842435,-504.28254192,0.00013698,2]
[395213244,1764547842446,-500.0,0.00013698,2]
[395213247,1764547842456,-1102.2,0.00013698,2]
[395213248,1764547842465,-500.0,0.00013698,2]
[395213250,1764547842474,-500.0,0.00013698,2]
[395213252,1764547842484,-884.13,0.00013698,2]
[395213255,1764547842494,-700.77,0.00013698,2]
[395213257,1764547842504,-670.44,0.00013698,2]
[395213258,1764547842514,-500.0,0.00013698,2]
[395213261,1764547842523,-500.0,0.00013698,2]
[395213263,1764547842533,-500.0,0.00013698,2]
[395213264,1764547842543,-500.0,0.00013698,2]
[395213266,1764547842553,-500.0,0.00013698,2]
[395213268,1764547842563,-617.62,0.00013698,2]
[395213270,1764547842572,-500.0,0.00013698,2]
[395213272,1764547842582,-500.0,0.00013698,2]
[395213275,1764547842592,-500.0,0.00013698,2]
[395213277,1764547842602,-527.06,0.00013698,2]
[395213279,1764547842613,-3547.43,0.00013698,2]
[395213281,1764547842623,-831.61,0.00013698,2]
[395213283,1764547842634,-500.0,0.00013698,2]
[395213284,1764547842644,-500.0,0.00013698,2]
[395213286,1764547842654,-500.0,0.00013698,2]
[395213288,1764547842664,-788.9,0.00013698,2]
[395213290,1764547842674,-500.0,0.00013698,2]
[395213293,1764547842689,-500.0,0.00013698,2]
[395213295,1764547842698,-871.61,0.00013698,2]
[395213297,1764547842710,-500.0,0.00013698,2]
[395213299,1764547842721,-500.0,0.00013698,2]
[395213300,1764547842739,-500.0,0.00013698,2]
[395213302,1764547842749,-500.0,0.00013698,2]
[395213304,1764547842760,-500.0,0.00013698,2]
[395213307,1764547842770,-1956.35,0.00013698,2]
[395213308,1764547842780,-1591.01,0.00013698,2]
[395213311,1764547842790,-500.0,0.00013698,2]
[395213313,1764547842800,-500.0,0.00013698,2]
[395213315,1764547842812,-500.0,0.00013698,2]
[395213316,1764547842821,-546.72,0.00013698,2]
[395213318,1764547842831,-500.0,0.00013698,2]
[395213321,1764547842841,-500.0,0.00013698,2]
[395213323,1764547842850,-955.74,0.00013698,2]
[395213324,1764547842860,-500.0,0.00013698,2]
[395213327,1764547842869,-500.0,0.00013698,2]
[395213329,1764547842879,-846.35,0.00013698,2]
[395213331,1764547842888,-500.0,0.00013698,2]
[395213333,1764547842898,-500.0,0.00013698,2]
[395213335,1764547842907,-500.0,0.00013698,2]
[395213336,1764547842916,-1126.27,0.00013698,2]
[395213338,1764547842926,-500.0,0.00013698,2]
[395213340,1764547842940,-500.0,0.00013698,2]
[395213342,1764547842949,-507.26535797,0.00013698,2]
[395213344,1764547842959,-500.0,0.00013698,2]
[395213346,1764547842969,-500.0,0.00013698,2]
[395213348,1764547842978,-500.0,0.00013698,2]
[395213350,1764547842988,-500.0,0.00013698,2]
[395213352,1764547842997,-500.0,0.00013698,2]
[395213354,1764547843009,-500.0,0.00013698,2]
[395213356,1764547843023,-500.0,0.00013698,2]
[395213358,1764547843033,-930.88,0.00013698,2]
[395213359,1764547843042,-500.0,0.00013698,2]
[395213361,1764547843052,-500.0,0.00013698,2]
[395213363,1764547843064,-500.0,0.00013698,2]
[395213365,1764547843075,-500.0,0.00013698,2]
[395213367,1764547843085,-500.0,0.00013698,2]
[395213369,1764547843099,-500.0,0.00013698,2]
[395213371,1764547843109,-1330.81,0.00013698,2]
[395213373,1764547843123,-500.0,0.00013698,2]
[395213375,1764547843134,-1962.8,0.00013698,2]
[395213377,1764547843144,-500.0,0.00013698,2]
[395213378,1764547843154,-500.0,0.00013698,2]
[395213381,1764547843166,-500.0,0.00013698,2]
[395213383,1764547843176,-574.55677583,0.00013698,2]
[395213385,1764547843194,-500.0,0.00013698,2]
[395213387,1764547843206,-647.63,0.00013698,2]
[395213389,1764547843217,-500.0,0.00013698,2]
[395213391,1764547843228,-18901.83,0.00013698,2]
[395213392,1764547843238,-382.1133158,0.00013698,2]
[395213394,1764547843248,-215.41956824,0.00013698,2]
[395213396,1764547843258,-500.0,0.00013698,2]
[395213398,1764547843268,-500.0,0.00013698,2]
[395213400,1764547843279,-538.19,0.00013698,2]
[395213402,1764547843290,-926.83,0.00013698,2]
[395213404,1764547843301,-1877.1,0.00013698,2]
[395213406,1764547843312,-500.0,0.00013698,2]
[395213408,1764547843327,-2465.66,0.00013698,2]
[395213409,1764547843339,-510.236485,0.00013698,2]
[395213411,1764547843349,-518.60828072,0.00013698,2]
[395213413,1764547843363,-500.0,0.00013698,2]
[395213415,1764547843374,-500.0,0.00013698,2]
[395213417,1764547843384,-500.0,0.00013698,2]
[395213419,1764547843394,-170.07449623,0.00013698,2]
[395213420,1764547843404,-500.0,0.00013698,2]
[395213422,1764547843413,-500.0,0.00013698,2]
[395213424,1764547843423,-500.0,0.00013698,2]
[395213426,1764547843437,-1103.14,0.00013698,2]
[395213428,1764547843448,-500.0,0.00013698,2]
[395213430,1764547843457,-500.0,0.00013698,2]
[395213432,1764547843467,-500.0,0.00013698,2]
[395213433,1764547843477,-500.0,0.00013698,2]
[395213435,1764547843487,-500.0,0.00013698,2]
[395213437,1764547843498,-500.0,0.00013698,2]
[395213439,1764547843508,-500.0,0.00013698,2]
[395213441,1764547843518,-500.0,0.00013698,2]
[395213443,1764547843530,-500.0,0.00013698,2]
[395213444,1764547843542,-500.0,0.00013698,2]
[395213446,1764547843552,-946.93,0.00013698,2]
[395213448,1764547843562,-500.0,0.00013698,2]
[395213450,1764547843573,-2099.32,0.00013698,2]
[395213452,1764547843583,-500.0,0.00013698,2]
[395213454,1764547843592,-553.49779573,0.00013698,2]
[395213456,1764547843602,-500.0,0.00013698,2]
[395213457,1764547843612,-500.0,0.00013698,2]
[395213459,1764547843623,-894.72,0.00013698,2]
[395213461,1764547843634,-894.72,0.00013698,2]
[395213463,1764547843644,-894.72,0.00013698,2]
[395213465,1764547843653,-727.4,0.00013698,2]
[395213466,1764547843668,-894.72,0.00013698,2]
[395213468,1764547843687,-894.72,0.00013698,2]
[395213470,1764547843697,-894.72,0.00013698,2]
[395213472,1764547843706,-894.72,0.00013698,2]
[395213474,1764547843716,-894.72,0.00013698,2]
[395213476,1764547843726,-894.72,0.00013698,2]
[395213477,1764547843736,-894.72,0.00013698,2]
[395213479,1764547843746,-500.0,0.00013698,2]
[395213481,1764547843756,-894.72,0.00013698,2]
[395213483,1764547843766,-1092.88,0.00013698,2]
[395213485,1764547843776,-894.72,0.00013698,2]
[395213487,1764547843786,-894.72,0.00013698,2]
[395213488,1764547843796,-894.72,0.00013698,2]
[395213490,1764547843806,-1396.65,0.00013698,2]
[395213492,1764547843815,-894.72,0.00013698,2]
[395213494,1764547843826,-500.0,0.00013698,2]
[395213496,1764547843836,-894.72,0.00013698,2]
[395213498,1764547843846,-894.72,0.00013698,2]
[395213500,1764547843855,-612.5126096,0.00013698,2]
[395213502,1764547843865,-500.0,0.00013698,2]
[395213504,1764547843876,-894.72,0.00013698,2]
[395213506,1764547843885,-894.72,0.00013698,2]
[395213508,1764547843895,-500.0,0.00013698,2]
[395213509,1764547843905,-894.72,0.00013698,2]
[395213511,1764547843915,-894.72,0.00013698,2]
[395213513,1764547843924,-894.72,0.00013698,2]
[395213515,1764547843943,-894.72,0.00013698,2]
[395213517,1764547843952,-894.78,0.00013698,2]
[395213519,1764547843961,-500.0,0.00013698,2]
[395213521,1764547843971,-500.0,0.00013698,2]
[395213523,1764547843980,-500.0,0.00013698,2]
[395213525,1764547843989,-500.0,0.00013698,2]
[395213527,1764547843999,-500.0,0.00013698,2]
[395213529,1764547844010,-500.0,0.00013698,2]
[395213530,1764547844021,-500.0,0.00013698,2]
[395213532,1764547844031,-500.0,0.00013698,2]
[395213534,1764547844041,-500.0,0.00013698,2]
[395213536,1764547844052,-500.0,0.00013698,2]
[395213538,1764547844061,-1723.58,0.00013698,2]
[395213540,1764547844071,-509.86842805,0.00013698,2]
[395213541,1764547844080,-500.0,0.00013698,2]
[395213543,1764547844091,-3444.94,0.00013698,2]
[395213545,1764547844101,-350.55148102,0.00013698,2]
[395213547,1764547844110,-4746.48,0.00013698,2]
[395213549,1764547844120,-500.0,0.00013698,2]
[395213551,1764547844130,-7720.79,0.00013698,2]
[395213553,1764547844141,-500.0,0.00013698,2]
[395213555,1764547844150,-500.0,0.00013698,2]
[395213557,1764547844160,-500.0,0.00013698,2]
[395213559,1764547844170,-500.0,0.00013698,2]
[395213561,1764547844184,-500.0,0.00013698,2]
[395213563,1764547844195,-500.0,0.00013698,2]
[395213564,1764547844204,-500.0,0.00013698,2]
[395213566,1764547844214,-500.0,0.00013698,2]
[395213568,1764547844223,-500.0,0.00013698,2]
[395213570,1764547844234,-500.0,0.00013698,2]
[395213572,1764547844244,-751.29,0.00013698,2]
[395213574,1764547844253,-500.0,0.00013698,2]
[395213576,1764547844263,-17065.91,0.00013698,2]
[395213578,1764547844273,-671.24,0.00013698,2]
[395213580,1764547844283,-500.0,0.00013698,2]
[395213581,1764547844292,-694.26,0.00013698,2]
[395213583,1764547844301,-1136.2,0.00013698,2]
[395213585,1764547844311,-500.0,0.00013698,2]
[395213587,1764547844320,-1743.96,0.00013698,2]
[395213589,1764547844329,-500.0,0.00013698,2]
[395213591,1764547844339,-636.16,0.00013698,2]
[395213593,1764547844349,-1367.62,0.00013698,2]
[395213595,1764547844359,-500.0,0.00013698,2]
[395213597,1764547844369,-611.96,0.00013698,2]
[395213599,1764547844378,-500.0,0.00013698,2]
[395213601,1764547844387,-1120.27,0.00013698,2]
[395213602,1764547844397,-500.0,0.00013698,2]
[395213604,1764547844407,-500.0,0.00013698,2]
[395213606,1764547844416,-500.0,0.00013698,2]
[395213608,1764547844427,-500.0,0.00013698,2]
[395213610,1764547844441,-500.0,0.00013698,2]
[395213612,1764547844452,-791.39,0.00013698,2]
[395213614,1764547844462,-500.0,0.00013698,2]
[395213616,1764547844472,-503.64937969,0.00013698,2]
[395213618,1764547844482,-500.0,0.00013698,2]
[395213620,1764547844492,-1726.06,0.00013698,2]
[395213621,1764547844502,-4332.05,0.00013698,2]
[395213623,1764547844511,-500.0,0.00013698,2]
[395213625,1764547844522,-1547.89,0.00013698,2]
[395213644,1764547844716,-929.72,0.00013698,2]
[395213645,1764547844727,-500.0,0.00013698,2]
[395213647,1764547844739,-1617.93,0.00013698,2]
[395213649,1764547844749,-500.0,0.00013698,2]
[395213651,1764547844759,-500.0,0.00013698,2]
[395213653,1764547844768,-500.0,0.00013698,2]
[395213655,1764547844778,-500.0,0.00013698,2]
[395213657,1764547844787,-926.66,0.00013698,2]
[395213659,1764547844797,-513.71979892,0.00013698,2]
[395213661,1764547844806,-500.0,0.00013698,2]
[395213663,1764547844816,-3646.16,0.00013698,2]
[395213664,1764547844826,-1809.43,0.00013698,2]
[395213666,1764547844835,-2240.8,0.00013698,2]
[395213668,1764547844845,-500.0,0.00013698,2]
[395213670,1764547844855,-6168.37,0.00013698,2]
[395213672,1764547844864,-500.0,0.00013698,2]
[395213674,1764547844874,-500.0,0.00013698,2]
[395213676,1764547844884,-500.0,0.00013698,2]
[395213678,1764547844894,-1223.9,0.00013698,2]
[395213680,1764547844903,-624.33,0.00013698,2]
[395213682,1764547844913,-3000.95,0.00013698,2]
[395213684,1764547844923,-500.0,0.00013698,2]
[395213686,1764547844937,-1817.5,0.00013698,2]
[395213688,1764547844947,-500.0,0.00013698,2]
[395213690,1764547844957,-500.0,0.00013698,2]
[395213691,1764547844967,-500.0,0.00013698,2]
[395213693,1764547844976,-500.0,0.00013698,2]
[395213695,1764547844987,-500.0,0.00013698,2]
[395213697,1764547844996,-871.05,0.00013698,2]
[395213699,1764547845006,-500.0,0.00013698,2]
[395213701,1764547845022,-2947.59,0.00013698,2]
[395213703,1764547845031,-1576.87,0.00013698,2]
[395213705,1764547845041,-500.0,0.00013698,2]
[395213707,1764547845051,-500.0,0.00013698,2]
[395213709,1764547845062,-500.0,0.00013698,2]
[395213711,1764547845072,-500.0,0.00013698,2]
[395213712,1764547845082,-500.0,0.00013698,2]
[395213714,1764547845096,-1139.11,0.00013698,2]
[395213716,1764547845105,-500.0,0.00013698,2]
[395213718,1764547845114,-500.0,0.00013698,2]
[395213720,1764547845125,-500.0,0.00013698,2]
[395213722,1764547845135,-500.0,0.00013698,2]
[395213724,1764547845144,-3342.48,0.00013698,2]
[395213726,1764547845154,-500.0,0.00013698,2]
[395213728,1764547845165,-801.41,0.00013698,2]
[395213730,1764547845175,-500.0,0.00013698,2]
[395213731,1764547845191,-1908.36,0.00013698,2]
[395213733,1764547845202,-500.0,0.00013698,2]
[395213734,1764547845212,-500.0,0.00013698,2]
[395213735,1764547845224,-500.0,0.00013698,2]
[395213736,1764547845234,-1153.9,0.00013698,2]
[395213737,1764547845245,-500.0,0.00013698,2]
[395213738,1764547845256,-500.0,0.00013698,2]
[395213739,1764547845268,-500.0,0.00013698,2]
[395213740,1764547845278,-582.81,0.00013698,2]
[395213741,1764547845288,-903.16,0.00013698,2]
[395213742,1764547845298,-1011.14,0.00013698,2]
[395213743,1764547845309,-570.4,0.00013698,2]
[395213744,1764547845319,-500.0,0.00013698,2]
[395213745,1764547845328,-1765.06,0.00013698,2]
[395213746,1764547845338,-2454.71,0.00013698,2]
[395213747,1764547845347,-500.0,0.00013698,2]
[395213748,1764547845357,-500.0,0.00013698,2]
[395213749,1764547845366,-790.07,0.00013698,2]
[395213750,1764547845376,-500.0,0.00013698,2]
[395213751,1764547845385,-3314.57,0.00013698,2]
[395213752,1764547845395,-500.0,0.00013698,2]
[395213753,1764547845404,-500.0,0.00013698,2]
[395213754,1764547845413,-1875.88,0.00013698,2]
[395213755,1764547845424,-2219.39,0.00013698,2]
[395213756,1764547845438,-2313.85,0.00013698,2]
[395213757,1764547845447,-500.0,0.00013698,2]
[395213758,1764547845457,-500.0,0.00013698,2]
[395213759,1764547845467,-5221.19,0.00013698,2]
[395213760,1764547845476,-3048.03,0.00013698,2]
[395213761,1764547845486,-500.0,0.00013698,2]
[395213762,1764547845495,-3145.78,0.00013698,2]
[395213763,1764547845505,-507.55648233,0.00013698,2]
[395213764,1764547845514,-10397.32,0.00013698,2]
[395213765,1764547845524,-500.0,0.00013698,2]
[395213766,1764547845533,-500.0,0.00013698,2]
[395213767,1764547845543,-760.25,0.00013698,2]
[395213768,1764547845552,-500.0,0.00013698,2]
[395213769,1764547845562,-500.0,0.00013698,2]
[395213770,1764547845571,-500.0,0.00013698,2]
[395213771,1764547845581,-500.0,0.00013698,2]
[395213772,1764547845591,-2989.63,0.00013698,2]
[395213773,1764547845600,-837.63,0.00013698,2]
[395213774,1764547845610,-500.0,0.00013698,2]
[395213775,1764547845620,-984.98,0.00013698,2]
[395213776,1764547845629,-500.0,0.00013698,2]
[395213777,1764547845639,-1081.9,0.00013698,2]
[395213778,1764547845649,-5982.17,0.00013698,2]
[395213779,1764547845668,-500.0,0.00013698,2]
[395213780,1764547845678,-1807.97,0.00013698,2]
[395213781,1764547845695,-500.0,0.00013698,2]
[395213782,1764547845705,-8291.1,0.00013698,2]
[395213783,1764547845717,-500.0,0.00013698,2]
[395213784,1764547845728,-500.0,0.00013698,2]
[395213785,1764547845739,-3531.24,0.00013698,2]
[395213786,1764547845749,-1985.68,0.00013698,2]
[395213787,1764547845760,-500.0,0.00013698,2]
[395213788,1764547845772,-500.0,0.00013698,2]
[395213789,1764547845782,-5538.13,0.00013698,2]
[395213790,1764547845792,-500.0,0.00013698,2]
[395213791,1764547845803,-500.0,0.00013698,2]
[395213792,1764547845814,-500.0,0.00013698,2]
[395213793,1764547845824,-500.0,0.00013698,2]
[395213794,1764547845834,-500.0,0.00013698,2]
[395213795,1764547845844,-1615.27,0.00013698,2]
[395213796,1764547845854,-500.0,0.00013698,2]
[395213797,1764547845864,-500.0,0.00013698,2]
[395213798,1764547845874,-500.0,0.00013698,2]
[395213799,1764547845885,-1762.42,0.00013698,2]
[395213801,1764547845895,-500.0,0.00013698,2]
[395213804,1764547845905,-2706.0,0.00013698,2]
[395213806,1764547845916,-522.06,0.00013698,2]
[395213810,1764547845925,-1167.41,0.00013698,2]
[395213813,1764547845940,-2549.68,0.00013698,2]
[395213814,1764547845950,-893.99,0.00013698,2]
[395213815,1764547845959,-500.0,0.00013698,2]
[395213816,1764547845969,-500.0,0.00013698,2]
[395213817,1764547845979,-500.0,0.00013698,2]
[395213818,1764547845989,-500.0,0.00013698,2]
[395213819,1764547845999,-500.0,0.00013698,2]
[395213820,1764547846009,-500.0,0.00013698,2]
[395213821,1764547846025,-500.0,0.00013698,2]
[395213822,1764547846035,-500.0,0.00013698,2]
[395213823,1764547846045,-500.0,0.00013698,2]
[395213824,1764547846058,-2706.58,0.00013698,2]
[395213826,1764547846068,-739.84,0.00013698,2]
[395213829,1764547846078,-501.98,0.00013698,2]
[395213831,1764547846091,-1888.96,0.00013698,2]
[395213835,1764547846103,-765.97,0.00013698,2]
[395213837,1764547846113,-1636.34,0.00013698,2]
[395213842,1764547846123,-500.0,0.00013698,2]
[395213846,1764547846133,-931.35,0.00013698,2]
[395213848,1764547846143,-3871.71,0.00013698,2]
[395213850,1764547846153,-500.0,0.00013698,2]
[395213851,1764547846163,-2563.46,0.00013698,2]
[395213852,1764547846173,-666.7,0.00013698,2]
[395213854,1764547846188,-500.0,0.00013698,2]
[395213855,1764547846197,-2450.73,0.00013698,2]
[395213856,1764547846207,-248.969998,0.00013699,2]
[395213857,1764547846218,-500.0,0.00013699,2]
[395213858,1764547846227,-500.0,0.00013699,2]
[395213859,1764547846238,-375.9236782,0.00013699,2]
[395213860,1764547846248,-500.0,0.00013699,2]
[395213861,1764547846257,-500.0,0.00013699,2]
[395213863,1764547846266,-500.0,0.00013699,2]
[395213864,1764547846275,-500.0,0.00013699,2]
[395213865,1764547846285,-500.0,0.00013699,2]
[395213869,1764547846294,-500.0,0.00013699,2]
[395213872,1764547846304,-500.0,0.00013699,2]
[395213874,1764547846313,-500.0,0.00013699,2]
[395213876,1764547846323,-500.0,0.00013699,2]
[395213878,1764547846332,-500.0,0.00013699,2]
[395213880,1764547846341,-500.0,0.00013699,2]
[395213882,1764547846351,-500.0,0.00013699,2]
[395213884,1764547846360,-568.56705157,0.00013699,2]
[395213886,1764547846369,-500.0,0.00013699,2]
[395213888,1764547846380,-500.0,0.00013699,2]
[395213891,1764547846389,-500.0,0.00013699,2]
[395213893,1764547846399,-500.0,0.00013699,2]
[395213895,1764547846408,-500.0,0.00013699,2]
[395213896,1764547846417,-500.0,0.00013699,2]
[395213898,1764547846427,-500.0,0.00013699,2]
[395213900,1764547846442,-500.0,0.00013699,2]
[395213902,1764547846452,-500.0,0.00013699,2]
[395213904,1764547846462,-500.0,0.00013699,2]
[395213906,1764547846472,-500.0,0.00013699,2]
[395213908,1764547846482,-500.0,0.00013699,2]
[395213910,1764547846492,-500.0,0.00013699,2]
[395213912,1764547846501,-500.0,0.00013699,2]
[395213914,1764547846511,-500.0,0.00013699,2]
[395213916,1764547846521,-500.0,0.00013699,2]
[395213918,1764547846530,-500.0,0.00013699,2]
[395213920,1764547846540,-500.0,0.00013699,2]
[395213922,1764547846550,-500.0,0.00013699,2]
[395213923,1764547846559,-274.63159774,0.00013699,2]
[395213925,1764547846569,-500.0,0.00013699,2]
[395213927,1764547846578,-500.0,0.00013699,2]
[395213929,1764547846588,-273.86464346,0.00013699,2]
[395213931,1764547846598,-500.0,0.00013699,2]
[395213933,1764547846607,-500.0,0.00013699,2]
[395213935,1764547846616,-500.0,0.00013699,2]
[395213937,1764547846626,-151.0,0.00013699,2]
[395213939,1764547846636,-414.0,0.00013716,2]
[395213941,1764547846645,-239.84119403,0.00013751,2]
[395213943,1764547846655,-500.626,0.00013782,2]
[395213945,1764547846664,-1000.0,0.00013821,2]
[395213947,1764547846674,-1000.0,0.00013821,2]
[395213949,1764547846685,-1000.0,0.00013821,2]
[395213951,1764547846695,-1000.0,0.00013821,2]
[395213953,1764547846705,-723.67257579,0.00013821,2]
[395213955,1764547846715,-1000.0,0.00013821,2]
[395213957,1764547846724,-1000.0,0.00013821,2]
[395213959,1764547846734,-1000.0,0.00013821,2]
[395213961,1764547846743,-1000.0,0.00013821,2]
[395213963,1764547846752,-1000.0,0.00013821,2]
[395213965,1764547846763,-1000.0,0.00013821,2]
[395213966,1764547846776,-50000.0,0.00013821,2]
[395213968,1764547846786,-500.0,0.00013972,2]
[395213970,1764547846796,-500.0,0.00013972,2]
[395213972,1764547846805,-555.23,0.00013972,2]
[395213974,1764547846815,-500.0,0.00013972,2]
[395213976,1764547846824,-715.49,0.00013972,2]
[395213978,1764547846833,-500.0,0.00013972,2]
[395213980,1764547846843,-500.0,0.00013972,2]
[395213982,1764547846853,-500.0,0.00013972,2]
[395213984,1764547846862,-1930.01,0.00013972,2]
[395213986,1764547846872,-550.14,0.00013972,2]
[395213988,1764547846881,-500.0,0.00013972,2]
[395213990,1764547846891,-500.0,0.00013972,2]
[395213992,1764547846901,-620.22,0.00013972,2]
[395213994,1764547846910,-1004.82,0.00013972,2]
[395213996,1764547846919,-500.0,0.00013972,2]
[395213998,1764547846929,-500.0,0.00013972,2]
[395213999,1764547846942,-500.0,0.00013972,2]
[395214001,1764547846952,-500.0,0.00013972,2]
[395214003,1764547846961,-553.97,0.00013972,2]
[395214005,1764547846971,-500.0,0.00013972,2]
[395214007,1764547846980,-500.0,0.00013972,2]
[395214009,1764547846989,-1164.46,0.00013972,2]
[395214011,1764547846998,-500.0,0.00013972,2]
[395214012,1764547847008,-500.0,0.00013972,2]
[395214014,1764547847021,-500.0,0.00013972,2]
[395214016,1764547847031,-500.0,0.00013972,2]
[395214018,1764547847040,-500.0,0.00013972,2]
[395214020,1764547847050,-551.76,0.00013972,2]
[395214022,1764547847061,-500.0,0.00013972,2]
[395214024,1764547847070,-500.0,0.00013972,2]
[395214026,1764547847079,-672.98,0.00013972,2]
[395214028,1764547847091,-647.81440305,0.00013972,2]
[395214030,1764547847100,-500.0,0.00013972,2]
[395214032,1764547847112,-245.48348267,0.00013972,2]
[395214034,1764547847121,-500.0,0.00013972,2]
[395214036,1764547847130,-500.0,0.00013972,2]
[395214038,1764547847139,-758.56,0.00013972,2]
[395214040,1764547847148,-500.0,0.00013972,2]
[395214042,1764547847158,-500.0,0.00013972,2]
[395214044,1764547847167,-500.0,0.00013972,2]
[395214051,1764547847176,-572.24,0.00013972,2]
[395214052,1764547847238,-500.0,0.00013972,2]
[395214054,1764547847248,-1551.99,0.00013972,2]
[395214056,1764547847257,-500.0,0.00013972,2]
[395214058,1764547847266,-500.0,0.00013972,2]
[395214060,1764547847275,-593.28,0.00013972,2]
[395214062,1764547847284,-500.0,0.00013972,2]
[395214064,1764547847293,-500.0,0.00013972,2]
[395214066,1764547847302,-500.0,0.00013972,2]
[395214068,1764547847311,-500.0,0.00013972,2]
[395214070,1764547847320,-500.0,0.00013972,2]
[395214072,1764547847329,-500.0,0.00013972,2]
[395214074,1764547847338,-1501.36,0.00013972,2]
[395214076,1764547847347,-500.0,0.00013972,2]
[395214077,1764547847356,-500.0,0.00013972,2]
[395214079,1764547847365,-1043.26,0.00013972,2]
[395214081,1764547847375,-1167.96,0.00013972,2]
[395214083,1764547847384,-875.49,0.00013972,2]
[395214085,1764547847393,-500.0,0.00013972,2]
[395214087,1764547847403,-775.42,0.00013972,2]
[395214089,1764547847413,-500.0,0.00013972,2]
[395214091,1764547847422,-500.0,0.00013972,2]
[395214093,1764547847436,-775.78,0.00013972,2]
[395214095,1764547847446,-500.0,0.00013972,2]
[395214097,1764547847456,-628.32,0.00013972,2]
[395214099,1764547847465,-500.0,0.00013972,2]
[395214101,1764547847475,-500.0,0.00013972,2]
[395214102,1764547847485,-677.04,0.00013972,2]
[395214104,1764547847496,-500.0,0.00013972,2]
[395214106,1764547847506,-151.0,0.00013972,2]
[395214108,1764547847516,-151.0,0.00013972,2]
[395214110,1764547847525,-500.0,0.00013972,2]
[395214112,1764547847535,-151.0,0.00013972,2]
[395214114,1764547847545,-151.0,0.00013972,2]
[395214116,1764547847555,-290.986223,0.00013972,2]
[395214118,1764547847564,-500.0,0.00013972,2]
[395214120,1764547847573,-657.5,0.00013972,2]
[395214122,1764547847582,-500.0,0.00013972,2]
[395214123,1764547847591,-500.0,0.00013972,2]
[395214125,1764547847601,-874.25,0.00013972,2]
[395214127,1764547847610,-180.74194648,0.00013972,2]
[395214129,1764547847620,-500.0,0.00013972,2]
[395214131,1764547847629,-536.05,0.00013972,2]
[395214133,1764547847639,-500.0,0.00013972,2]
[395214135,1764547847648,-500.0,0.00013972,2]
[395214137,1764547847658,-500.0,0.00013972,2]
[395214139,1764547847667,-544.42,0.00013972,2]
[395214141,1764547847677,-2398.0,0.00013972,2]
[395214143,1764547847691,-500.0,0.00013972,2]
[395214145,1764547847700,-500.0,0.00013972,2]
[395214147,1764547847710,-500.0,0.00013972,2]